[Event "CZE-ch Open 2019"]
[Site "Ostrava"]
[Date "2019.05.03"]
[Round "7.33"]
[White "Kolar, Stanislav"]
[Black "Didi, Jan"]
[Result "1-0"]
[ECO "A34"]
[WhiteElo "2091"]
[BlackElo "2025"]
[Annotator "NA"]
[PlyCount "101"]
[EventDate "2019.04.27"]
[EventType "swiss"]
[EventCountry "CZE"]
[SourceTitle "playchess.com"]
[Source "ChessBase"]
[SourceQuality "1"]
[TimeControl "40/5400+30:1800+30"]

1. c4 {[%emt 0:00:00]} c5 {[%emt 0:00:00]} 2. Nc3 {[%emt 0:00:00]} Nf6 {[%emt 0:00:00]} 3. g3 {[%emt 0:00:09]} d5 {[%emt 0:00:17]} 4. cxd5 {[%emt 0:00:09]} Nxd5 {[%emt 0:00:12]} 5. Bg2 {[%emt 0:00:23]} Nc7 {[%emt 0:00:06]} 6. d3 {[%emt 0:00:32]} Nc6 {[%emt 0:00:07]} 7. Be3 {[%emt 0:00:23]} e5 {[%emt 0:00:43]} 8. Rc1 {[%emt 0:00:23]} Be6 {[%emt 0:07:49]} 9. Bxc6+ {[%emt 0:02:05]} bxc6 {[%emt 0:00:11]} 10. Nf3 {[%emt 0:00:40]} f6 {[%emt 0:08:56]} 11. Qa4 {[%emt 0:03:24]} Bd5 {[%emt 0:08:59]} 12. O-O {[%emt 0:03:06]} Ne6 {[%emt 0:11:02]} 13. Ne4 {[%emt 0:09:59]} Nd4 {[%emt 0:17:44]} 14. Rfe1 {[%emt 0:02:11]} Qb6 {[%emt 0:03:57]} 15. b3 {[%emt 0:11:04]} Be7 {[%emt 0:00:58]} 16. Nfd2 {[%emt 0:01:57]} O-O {[%emt 0:01:09]} 17. Nc3 {[%emt 0:03:36]} Be6 {[%emt 0:04:50]} 18. f3 {[%emt 0:03:24]} Rab8 {[%emt 0:10:24]} 19. Bf2 {[%emt 0:01:05]} f5 {[%emt 0:02:41]} 20. Nc4 {[%emt 0:04:55]} Qc7 {[%emt 0:00:49]} 21. Qa5 {[%emt 0:02:03]} Bd6 {[%emt 0:03:51]} 22. Qxc7 {[%emt 0:02:14]} Bxc7 {[%emt 0:00:07]} 23. Kg2 {[%emt 0:00:34]} Bxc4 {[%emt 0:00:33]} 24. dxc4 {[%emt 0:01:08]} Ba5 {[%emt 0:01:52]} 25. e3 {[%emt 0:00:37]} Ne6 {[%emt 0:00:23]} 26. Red1 {[%emt 0:00:43]} Bxc3 {[%emt 0:02:11]} 27. Rxc3 {[%emt 0:00:09]} Rbd8 {[%emt 0:00:27]} 28. Rcd3 {[%emt 0:01:25]} Rxd3 {[%emt 0:00:31]} 29. Rxd3 {[%emt 0:00:04]} Rd8 {[%emt 0:00:15]} 30. Rxd8+ {[%emt 0:00:12]} Nxd8 {[%emt 0:00:08]} 31. e4 {[%emt 0:00:28]} fxe4 {[%emt 0:00:07]} 32. Bxc5 {[%emt 0:00:22]} a6 {[%emt 0:03:50]} 33. fxe4 {[%emt 0:00:38]} Kf7 {[%emt 0:00:39]} 34. Kf3 {[%emt 0:01:01]} Ne6 {[%emt 0:00:58]} 35. Bb6 {[%emt 0:01:56]} Ke7 {[%emt 0:02:18]} 36. Ke3 {[%emt 0:00:16]} Kd6 {[%emt 0:01:04]} 37. b4 {[%emt 0:00:59]} g6 {[%emt 0:02:37]} 38. a4 {[%emt 0:02:29]} Ng7 {[%emt 0:00:52]} 39. Kd3 {[%emt 0:03:08]} Ne8 {[%emt 0:01:11]} 40. Bc5+ {[%emt 0:04:05]} Kd7 {[%emt 0:00:56]} 41. Be3 {[%emt 0:33:01]} Nc7 {[%emt 0:33:02]} 42. Bb6 {[%emt 0:02:39]} Ne6 {[%emt 0:00:48]} 43. b5 {[%emt 0:02:29]} cxb5 {[%emt 0:00:00]} 44. axb5 {[%emt 0:00:00]} axb5 {[%emt 0:00:00]} 45. cxb5 {[%emt 0:00:00]} Kd6 {[%emt 0:00:00]} 46. Kc4 {[%emt 0:00:00]} Ng5 {[%emt 0:00:00]} 47. Bc5+ {[%emt 0:00:00]} Ke6 {[%emt 0:00:00]} 48. b6 {[%emt 0:00:00]} Kd7 {[%emt 0:00:00]} 49. Kd5 {[%emt 0:00:00]} Nf3 {[%emt 0:00:00]} 50. Bd6 {[%emt 0:00:00]} Kc8 {[%emt 0:00:00]} 51. Bxe5 {[%emt 0:00:00]} 1-0